bitfinex-derivatives/quotes_SOLF0:USTF0_20250808
["timestamp","ask_amount","ask_price","bid_price","bid_amount"]
[1754662286869,3.24,177.97,177.91,3.22]
[1754662287272,3.24,177.96,177.86,3.22]
[1754662287772,3.24,177.95,177.92,8.8383]
[1754662288075,3.24,177.98,177.89,3.22]
[1754662288468,3.24,178.0,177.92,3.22]
[1754662289268,7.93028826,178.0,177.92,3.22]
[1754662289467,3.24,177.99,177.92,3.22]
[1754662289669,3.24,177.98,177.92,3.22]
[1754662290170,4.69028826,177.98,177.89,3.22]
[1754662290476,3.24,177.95,177.89,3.22]
[1754662290774,7.93028826,177.98,177.89,3.22]
[1754662291071,3.24,177.96,177.89,3.22]
[1754662291276,7.93028826,177.96,177.89,3.22]
[1754662291771,7.93028826,177.92,177.86,3.22]
[1754662292369,7.93028826,177.91,177.87,3.22]
[1754662292570,3.24,177.9,177.84,3.22]
[1754662293372,4.69028826,177.91,177.86,5.62]
[1754662293571,4.69028826,177.9,177.84,3.22]
[1754662293773,4.69028826,177.91,177.83,9.84483759]
[1754662293980,4.69028826,177.91,177.81,3.22]
[1754662294168,4.69028826,177.9,177.82,3.22]
[1754662294376,4.69028826,177.9,177.86,5.6203]
[1754662294574,4.69028826,177.9,177.82,3.22]
[1754662294769,3.17766867,177.89,177.82,13.06483759]
[1754662294972,7.93028826,177.9,177.87,3.22]
[1754662294973,3.17766867,177.88,177.87,3.22]
[1754662295574,3.17766867,177.88,177.87,8.84]
[1754662295969,3.17766867,177.88,177.82,9.84483759]
[1754662296174,6.34766867,177.87,177.83,3.26]
[1754662296375,3.17766867,177.86,177.82,3.26]
[1754662296576,3.17766867,177.85,177.82,3.26]
[1754662296772,3.17766867,177.84,177.82,9.84483759]
[1754662296970,13.47938826,177.9,177.84,5.6207]
[1754662297171,13.47938826,177.9,177.79,377.58]
[1754662297172,7.86028826,177.89,177.8,3.26]
[1754662297380,3.17,177.88,177.8,3.26]
[1754662298079,3.17,177.88,177.8,9.84483759]
[1754662298382,3.17,177.88,177.81,3.26]
[1754662298577,7.86028826,177.88,177.84,5.6209]
[1754662298773,3.17,177.87,177.84,5.6209]
[1754662298975,3.17,177.87,177.81,3.26]
[1754662298976,4.69028826,177.88,177.81,3.26]
[1754662299184,3.17,177.87,177.81,3.26]
[1754662299577,4.69028826,177.89,177.81,3.26]
[1754662299779,3.17,177.88,177.81,3.26]
[1754662299977,4.69028826,177.87,177.81,3.26]
[1754662300284,3.17,177.85,177.83,3.26]
[1754662300481,3.17,177.85,177.8,3.26]
[1754662300681,4.69028826,177.87,177.81,3.26]
[1754662300876,4.69028826,177.87,177.82,5.6215]
[1754662301082,3.17,177.86,177.79,3.26]
[1754662301282,8.7904,177.86,177.8,5.6222]
[1754662301485,9.84483759,177.85,177.76,3.26]
[1754662301684,9.84483759,177.82,177.73,3.26]
[1754662301878,3.17,177.8,177.7,3.26]
[1754662302085,3.17,177.79,177.7,3.26]
[1754662302477,3.17,177.79,177.69,387.64483759]
[1754662302478,3.17,177.79,177.76,3.26]
[1754662302889,7.86028826,177.81,177.75,5.6236]
[1754662303081,3.17,177.8,177.69,9.84483759]
[1754662303287,3.17,177.77,177.69,3.26]
[1754662303484,3.17,177.76,177.69,3.26]
[1754662303683,3.17,177.75,177.69,3.26]
[1754662303884,7.86028826,177.75,177.69,3.26]
[1754662304387,3.17,177.75,177.69,3.26]
[1754662304986,3.17,177.77,177.69,3.26]
[1754662305186,3.17,177.71,177.62,18.10483759]
[1754662305394,3.17,177.71,177.62,13.10483759]
[1754662305584,3.17,177.7,177.62,13.10483759]
[1754662305783,7.86028826,177.73,177.65,9.84483759]
[1754662305989,3.17,177.73,177.71,5.6248]
[1754662306284,3.17,177.73,177.68,9.84483759]
[1754662306481,3.17,177.73,177.69,3.26]
[1754662306685,3.17,177.73,177.71,5.6248]
[1754662307194,3.17,177.73,177.67,9.84483759]
[1754662307388,4.00645577,177.72,177.68,3.26]
[1754662307586,4.00645577,177.71,177.67,9.84483759]
[1754662307789,4.00645577,177.7,177.69,8.8857]
[1754662308596,4.00645577,177.7,177.69,5.6257]
[1754662309099,4.00645577,177.7,177.69,8.8857]
[1754662309493,3.17,177.75,177.69,13.10483759]
[1754662310595,3.17,177.75,177.71,5.625]
[1754662310798,3.17,177.77,177.72,9.84483759]
[1754662311092,3.17,177.77,177.73,3.26]
[1754662311296,3.17,177.76,177.74,5.6239]
[1754662311495,3.17,177.76,177.73,3.26]
[1754662311496,3.10353538,177.81,177.73,3.26]
[1754662311700,3.17,177.79,177.7,13.10483759]
[1754662311898,3.17,177.77,177.7,13.10483759]
[1754662312091,3.10353538,177.77,177.71,9.84483759]
[1754662312398,3.17,177.75,177.73,5.6243]
[1754662312596,3.10353538,177.79,177.6,21.10173759]
[1754662312788,3.17,177.77,177.68,13.10483759]
[1754662312988,3.17,177.75,177.65,13.10483759]
[1754662313194,3.17,177.74,177.65,9.84483759]
[1754662313699,3.17,177.72,177.65,9.84483759]
[1754662314002,3.17,177.72,177.66,5.6264]
[1754662314700,3.17,177.72,177.67,5.6264]
[1754662314892,3.17,177.72,177.65,9.84483759]
[1754662315096,3.17,177.72,177.64,3.26]
[1754662315297,3.17,177.71,177.64,3.26]
[1754662315497,9.84483759,177.69,177.61,3.26]
[1754662315694,3.17,177.67,177.57,3.26]
[1754662315900,3.10353538,177.68,177.63,3.26]
[1754662316194,3.17,177.74,177.66,3.26]
[1754662316399,6.27353538,177.78,177.69,3.26]
[1754662316599,3.17,177.78,177.69,3.26]
[1754662317303,3.17,177.78,177.73,5.6242]
[1754662317502,3.10353538,177.79,177.73,5.6242]
[1754662317703,3.17,177.75,177.73,5.6242]
[1754662317908,6.27353538,177.78,177.71,3.26]
[1754662318103,3.17,177.76,177.67,3.26]
[1754662318501,3.17,177.75,177.73,5.6244]
[1754662318798,6.27353538,177.77,177.7,3.26]
[1754662318998,3.17,177.78,177.72,5.6247]
[1754662319206,3.17,177.76,177.7,3.26]
[1754662319606,3.17,177.75,177.7,3.26]
[1754662319806,9.84483759,177.8,177.62,116.12]
[1754662319807,9.84483759,177.74,177.62,119.38]
[1754662319998,3.17,177.7,177.62,3.26]
[1754662320203,6.27353538,177.7,177.62,3.26]
[1754662320504,4.69028826,177.79,177.67,9.84483759]
[1754662320703,3.17,177.78,177.75,3.26]
[1754662320903,3.17,177.77,177.71,3.26]
[1754662321400,3.89675237,177.76,177.71,3.26]
[1754662321606,3.89675237,177.75,177.74,3.26]
[1754662322204,3.17,177.74,177.71,3.26]
[1754662322401,3.89675237,177.73,177.71,3.26]
[1754662322604,3.89675237,177.72,177.71,3.26]
[1754662322799,7.06675237,177.72,177.69,3.26]
[1754662323002,4.69028826,177.81,177.55,11.2598]
[1754662323003,3.17,177.69,177.61,9.84483759]
[1754662323310,3.17,177.67,177.64,3.26]
[1754662323506,3.17,177.67,177.57,116.1]
[1754662323507,3.89675237,177.66,177.65,13.10483759]
[1754662323813,3.17,177.73,177.69,3.0]
[1754662324010,4.69028826,177.79,177.7,3.0]
[1754662324203,3.17,177.76,177.7,3.0]
[1754662324802,3.17,177.76,177.71,9.84483759]
[1754662325003,3.17,177.79,177.73,3.0]
[1754662325502,3.17,177.79,177.7,3.0]
[1754662325701,3.17,177.79,177.72,5.6247]
[1754662325906,3.17,177.79,177.7,3.0]
[1754662326211,3.13,177.82,177.73,9.84483759]
[1754662326413,3.13,177.82,177.74,3.0]
[1754662326907,4.69028826,177.85,177.77,3.0]
[1754662326908,3.13,177.85,177.77,3.0]
[1754662327110,3.13,177.85,177.79,9.84483759]
[1754662327303,3.13,177.85,177.82,5.6216]
[1754662327506,3.13,177.85,177.81,3.0]
[1754662327709,3.13,177.89,177.8,3.0]
[1754662328008,3.13,177.92,177.86,3.0]
[1754662328208,3.13,177.95,177.86,3.0]
[1754662328408,3.13,177.95,177.91,5.6185]
[1754662328611,3.13,177.95,177.89,3.0]
[1754662328915,3.13,177.95,177.89,8.6193]
[1754662329213,3.13,177.95,177.88,9.84483759]
[1754662329709,3.13,177.95,177.86,3.0]
[1754662329918,3.13,177.95,177.88,9.84483759]
[1754662330512,7.82028826,177.98,177.91,9.84483759]
[1754662330712,3.13,177.98,177.94,5.6177]
[1754662330912,3.13,177.98,177.92,3.0]
[1754662331316,3.13,177.98,177.88,12.84483759]
[1754662331518,3.13,177.97,177.88,12.84483759]
[1754662332214,3.13,177.97,177.88,9.84483759]
[1754662332406,3.13,177.97,177.88,15.46433759]
[1754662332407,5.6175,177.96,177.88,15.46433759]
[1754662332610,6.14304902,177.95,177.88,5.6195]
[1754662332910,3.13,177.93,177.86,18.45493759]
[1754662333110,6.14304902,177.93,177.86,12.83483759]
[1754662333305,6.14304902,177.96,177.89,9.84483759]
[1754662333510,3.01304902,177.95,177.89,9.84483759]
[1754662333705,3.01304902,177.95,177.89,15.46393759]
[1754662333912,3.13,177.93,177.89,12.83483759]
[1754662334414,3.13,177.92,177.89,12.83483759]
[1754662334625,3.01304902,177.94,177.88,5.6196]
[1754662334918,3.13,177.91,177.87,9.84483759]
[1754662335106,3.13,177.9,177.84,125.86483759]
[1754662335313,3.13,177.9,177.83,2.99]
[1754662335515,3.01304902,177.89,177.83,2.99]
[1754662335715,8.7503,177.87,177.8,2.99]
[1754662335913,3.13,177.85,177.79,115.96]
[1754662336215,6.88857498,177.86,177.79,115.96]
[1754662336216,6.88857498,177.84,177.8,2.99]
[1754662336412,3.87552596,177.83,177.8,2.99]
[1754662336615,3.87552596,177.82,177.76,9.84483759]
[1754662336818,3.87552596,177.82,177.72,115.96]
[1754662336819,3.87552596,177.81,177.8,2.99]
[1754662337411,3.87552596,177.81,177.79,9.84483759]
[1754662337612,3.87552596,177.8,177.76,9.84483759]
[1754662337816,3.87552596,177.79,177.76,9.84483759]
[1754662338019,3.87552596,177.78,177.76,9.84483759]
[1754662338204,3.87552596,177.77,177.76,9.84483759]
[1754662338410,3.87552596,177.77,177.76,12.83483759]
[1754662338611,3.87552596,177.77,177.75,5.6238]
[1754662338807,3.87552596,177.76,177.75,8.6138]
[1754662339915,3.87552596,177.76,177.75,5.6238]
[1754662340214,3.87552596,177.76,177.72,128.79483759]
[1754662340215,3.13,177.75,177.72,115.96]
[1754662340412,3.87552596,177.74,177.72,115.96]
[1754662340619,3.87552596,177.73,177.72,115.96]
[1754662340816,3.87552596,177.73,177.72,124.5748]
[1754662341013,3.01698023,177.77,177.73,2.99]
[1754662341220,3.01698023,177.77,177.72,121.58]
[1754662341221,3.01698023,177.8,177.79,5.6226]
[1754662341513,3.01698023,177.83,177.81,2.99]
[1754662341708,3.13,177.85,177.83,5.6212]
[1754662341911,3.01698023,177.84,177.76,9.84483759]
[1754662342114,3.13,177.82,177.76,12.83483759]
[1754662342718,3.01698023,177.84,177.76,9.84483759]
[1754662342916,3.01698023,177.83,177.77,2.99]
[1754662344219,6.17723529,177.89,177.76,9.84483759]
[1754662344220,3.13,177.81,177.78,2.99]
[1754662344412,3.01698023,177.81,177.8,8.612]
[1754662344614,3.01698023,177.85,177.8,2.99]
[1754662344810,3.01698023,177.86,177.83,2.99]
[1754662345114,6.14698023,177.88,177.82,12.83483759]
[1754662345314,3.13,177.86,177.82,9.84483759]
[1754662345510,3.01698023,177.89,177.86,2.99]
[1754662345716,3.01698023,177.91,177.88,12.83483759]
[1754662346015,3.01698023,177.92,177.91,5.6188]
[1754662346205,4.69028826,177.96,177.91,5.6188]
[1754662346206,3.01698023,177.95,177.91,9.84483759]
[1754662346410,3.13,177.96,177.91,9.84483759]
[1754662346411,3.13,177.96,177.95,5.6175]
[1754662346606,3.13,177.97,177.92,2.99]
[1754662346812,3.13,177.96,177.87,2.99]
[1754662347025,3.01698023,177.95,177.88,2.99]
[1754662347214,3.13,177.96,177.88,2.99]
[1754662347408,3.13,177.96,177.92,2.99]
[1754662348218,3.01698023,178.0,177.91,9.84483759]
[1754662348219,3.13,177.95,177.91,9.84483759]
[1754662348525,3.13,177.95,177.91,12.83483759]
[1754662349117,3.13,177.98,177.91,9.84483759]
[1754662349422,3.01698023,177.99,177.97,12.83483759]
[1754662349611,3.13,178.03,177.97,9.84483759]
[1754662349811,3.13,178.01,177.97,9.84483759]
[1754662350127,3.13,178.01,177.92,12.83483759]
[1754662350421,3.13,178.0,177.92,12.83483759]
[1754662350824,8.746,178.0,177.92,12.83483759]
[1754662351019,3.01698023,177.99,177.91,115.84]
[1754662351212,3.13,177.98,177.91,115.84]
[1754662351417,5.6176,177.95,177.91,115.84]
[1754662351617,6.14698023,177.98,177.91,115.84]
[1754662351821,3.13,177.98,177.91,115.84]
[1754662352023,3.01698023,177.98,177.91,115.84]
[1754662352317,3.13,177.97,177.91,115.84]
[1754662352820,3.01698023,177.96,177.86,9.84483759]
[1754662353019,3.13,177.96,177.86,9.84483759]
[1754662353318,3.13,177.94,177.86,9.84483759]
[1754662353518,8.7481,177.94,177.86,15.46513759]
[1754662353717,6.14698023,177.94,177.9,2.99]
[1754662354015,3.13,177.92,177.85,115.8]
[1754662354214,3.13,177.97,177.87,9.84483759]
[1754662354415,3.13,177.96,177.87,9.84483759]
[1754662354615,6.14698023,177.96,177.87,9.84483759]
[1754662354820,5.6178,177.95,177.87,15.46463759]
[1754662355023,3.13,177.94,177.87,9.84483759]
[1754662356022,0.03666156,177.92,177.89,3.0]
[1754662356322,0.03666156,177.92,177.87,9.84483759]
[1754662356323,3.04,177.91,177.87,9.84483759]
[1754662356520,3.04,177.89,177.87,9.84483759]
[1754662356724,0.03666156,177.92,177.85,115.8]
[1754662356928,0.03666156,177.92,177.89,9.84483759]
[1754662357224,3.04,177.91,177.86,235.0]
[1754662357424,3.04,177.91,177.87,8.62]
[1754662357625,0.03666156,177.92,177.86,244.84483759]
[1754662357626,0.03666156,177.92,177.86,235.0]
[1754662357825,3.04,177.91,177.87,0.03942604]
[1754662358521,3.04,177.9,177.87,0.03942604]
[1754662358721,3.01698023,177.91,177.87,0.03942604]
[1754662358722,3.04,177.89,177.87,0.03942604]
[1754662359027,0.03666156,177.92,177.87,0.03942604]
[1754662359231,3.04,177.91,177.87,0.03942604]
[1754662359425,3.04,177.9,177.87,3.03942604]
[1754662359626,3.04,177.9,177.87,8.65922604]
[1754662359822,0.03666156,177.92,177.87,8.65922604]
[1754662360029,0.03666156,177.92,177.89,3.0]
[1754662360629,3.04,177.91,177.87,9.88426363]
[1754662360829,3.04,177.89,177.87,9.88426363]
[1754662361025,3.04,177.88,177.87,0.03942604]
[1754662362633,6.05698023,177.88,177.87,0.03942604]
[1754662362834,3.04,177.88,177.87,0.03942604]
[1754662363534,3.01806072,177.91,177.87,0.03942604]
[1754662363734,3.04,177.88,177.87,0.03942604]
[1754662364240,11.67776072,177.88,177.84,115.74]
[1754662364439,6.05806072,177.87,177.84,115.74]
[1754662364632,5.6205,177.86,177.81,9.84483759]
[1754662365036,3.04,177.83,177.62,4.59103222]
[1754662365227,4.6687938,177.82,177.67,5.0]
[1754662365428,4.6687938,177.82,177.63,5.0]
[1754662365429,3.04,177.75,177.63,5.0]
[1754662365630,4.6687938,177.72,177.63,5.0]
[1754662365827,3.04,177.69,177.56,377.84]
[1754662366034,3.04,177.67,177.55,3.0]
[1754662366233,3.04,177.65,177.56,121.8296]
[1754662366438,3.01806072,177.64,177.58,9.84483759]
[1754662366634,3.01806072,177.64,177.57,12.84483759]
[1754662366937,10.08659389,177.63,177.56,116.2]
[1754662367128,7.04659389,177.62,177.58,3.0]
[1754662367330,7.06853317,177.61,177.56,116.2]
[1754662367530,7.06481458,177.6,177.56,119.2]
[1754662367730,3.04,177.58,177.47,380.84]
[1754662367939,3.04,177.55,177.51,5.0]
[1754662368142,3.02169733,177.61,177.36,4.59103222]
[1754662368143,3.04,177.52,177.36,3.0]
[1754662368338,3.04,177.5,177.38,9.84483759]
[1754662368640,3.04,177.48,177.41,9.84483759]
[1754662368836,4.02506693,177.47,177.39,3.0]
[1754662369036,7.06506693,177.46,177.4,9.84483759]
[1754662369236,4.02506693,177.45,177.4,9.84483759]
[1754662369440,4.02506693,177.45,177.43,3.0]
[1754662369640,4.02506693,177.48,177.44,3.0]
[1754662369840,4.02506693,177.47,177.46,3.0]
[1754662370033,1.5962628,177.5,177.46,12.84483759]
[1754662370237,3.04,177.55,177.49,9.84483759]
[1754662370431,3.04,177.53,177.42,3.0]
[1754662370630,3.04,177.51,177.4,9.84483759]
[1754662370835,3.04,177.49,177.38,119.1]
[1754662371034,3.04,177.47,177.36,9.84483759]
[1754662371239,9.84483759,177.45,177.35,378.0]
[1754662371435,9.84483759,177.45,177.27,3.0]
[1754662371436,3.04,177.43,177.27,3.0]
[1754662371636,3.04,177.41,177.29,9.84483759]
[1754662371837,3.04,177.41,177.32,9.84483759]
[1754662372141,3.04,177.41,177.34,15.48133759]
[1754662372344,3.04,177.41,177.31,3.0]
[1754662372640,0.03825582,177.38,177.32,9.84483759]
[1754662372943,3.07825582,177.38,177.32,9.84483759]
[1754662373135,3.04,177.38,177.32,9.84483759]
[1754662373341,0.03779296,177.37,177.31,119.22]
[1754662373537,3.07779296,177.37,177.23,378.24]
[1754662373736,3.07779296,177.37,177.23,498.88]
[1754662373936,3.04,177.35,177.23,498.88]
[1754662374239,3.04,177.34,177.25,3.0]
[1754662374433,3.04,177.31,177.25,12.84483759]
[1754662374638,3.04,177.31,177.24,3.0]
[1754662374842,3.04,177.31,177.25,5.6395]
[1754662375134,3.04,177.31,177.24,12.84483759]
[1754662375544,3.04,177.31,177.23,378.24]
[1754662375738,3.04,177.31,177.24,9.84483759]
[1754662375940,3.04,177.31,177.23,381.24]
[1754662376442,3.04,177.31,177.23,391.08483759]
[1754662376945,3.04,177.31,177.22,121.48]
[1754662377142,3.04,177.31,177.22,122.4]
[1754662377841,0.04257592,177.28,177.22,128.0402]
[1754662378033,3.04,177.25,177.22,128.0402]
[1754662378239,0.04257592,177.28,177.24,5.6398]
[1754662378436,0.04257592,177.28,177.22,125.4]
[1754662378641,3.04,177.27,177.22,132.24483759]
[1754662378846,3.04,177.27,177.19,3.0]
[1754662379142,3.04,177.27,177.16,132.74483759]
[1754662379340,9.84483759,177.26,177.16,5.6424]
[1754662379537,3.04,177.25,177.15,126.04]
[1754662379735,3.04,177.25,177.17,12.84483759]
[1754662379943,0.0358623,177.23,177.21,3.0]
[1754662380344,0.0358623,177.23,177.22,8.6405]
[1754662380544,3.04,177.31,177.22,3.0]
[1754662380942,3.04,177.29,177.26,9.84483759]
[1754662381150,3.04,177.35,177.24,123.06]
[1754662381350,3.04,177.25,177.2,3.0]
[1754662381541,0.03887377,177.28,177.23,9.84483759]
[1754662381744,3.04,177.3,177.24,3.0]
[1754662381940,3.04,177.3,177.23,5.6401]
[1754662382250,3.04,177.25,177.22,123.22]
[1754662382446,3.04,177.26,177.18,9.84483759]
[1754662382639,0.04252853,177.27,177.22,9.84483759]
[1754662382842,9.84483759,177.37,177.25,9.84483759]
[1754662383045,3.04,177.36,177.25,9.84483759]
[1754662383243,3.04,177.36,177.25,12.84483759]
[1754662383445,0.03589079,177.26,177.25,12.84483759]
[1754662383645,0.03589079,177.26,177.19,3.0]
[1754662383941,0.03589079,177.26,177.14,0.98237096]
[1754662383942,3.04,177.36,177.23,9.84483759]
[1754662384148,3.04,177.36,177.22,123.8]
[1754662384348,0.04140237,177.24,177.14,5.98237096]
[1754662384546,3.04,177.22,177.2,5.6411]
[1754662384745,3.04,177.25,177.19,12.84483759]
[1754662385147,3.04,177.22,177.19,9.84483759]
[1754662385346,3.04,177.21,177.17,9.84483759]
[1754662385551,3.04,177.21,177.15,127.14]
[1754662385745,36.25341309,177.44,177.15,127.14]
[1754662385746,3.04,177.26,177.15,127.14]
[1754662386140,0.03834549,177.2,177.18,9.84483759]
[1754662386347,502.84,177.45,177.19,3.02]
[1754662386644,3.28,177.33,177.22,9.84483759]
[1754662386851,3.28,177.32,177.22,9.84483759]
[1754662387041,3.28,177.32,177.21,2.98]
[1754662387246,3.28,177.29,177.17,2.98]
[1754662387953,3.28,177.29,177.16,133.80483759]
[1754662387954,3.28,177.32,177.26,9.84483759]
[1754662388148,3.28,177.32,177.28,2.98]
[1754662388351,3.28,177.32,177.28,8.6184]
[1754662388547,3.28,177.32,177.28,2.98]
[1754662388743,3.28,177.4,177.28,2.98]
[1754662388948,3.28,177.46,177.39,9.84483759]
[1754662389254,3.28,177.46,177.39,12.82483759]
[1754662389449,3.28,177.45,177.41,2.98]
[1754662389649,3.28,177.48,177.42,12.82483759]
[1754662389954,0.03819322,177.44,177.38,9.84483759]
[1754662390147,0.03819322,177.44,177.43,0.0392836]
[1754662390351,3.31819322,177.44,177.37,124.48]
[1754662390552,3.28,177.44,177.34,2.98]
[1754662390752,3.28,177.41,177.33,5.0]
[1754662390946,3.28,177.41,177.35,5.6364]
[1754662391151,3.28,177.47,177.36,2.98]
[1754662391645,3.28,177.47,177.38,9.84483759]
[1754662391849,0.03810073,177.43,177.39,2.98]
[1754662392055,0.03810073,177.43,177.38,9.84483759]
[1754662392255,0.03810073,177.43,177.3,124.76]
[1754662392460,3.28,177.42,177.32,5.0]
[1754662392758,3.28,177.38,177.26,12.82483759]
[1754662392948,3.28,177.37,177.27,128.32]
[1754662393143,3.28,177.36,177.27,128.32]
[1754662393852,9.84483759,177.48,177.26,2.98]
[1754662393853,9.84483759,177.35,177.26,2.98]
[1754662394056,3.28,177.31,177.25,379.08]
[1754662394252,0.03865442,177.33,177.28,9.84483759]
[1754662394562,3.28,177.41,177.32,2.98]
[1754662394862,3.28,177.48,177.38,9.84483759]
[1754662395053,3.28,177.48,177.39,2.98]
[1754662395248,3.28,177.49,177.41,9.84483759]
[1754662395447,19.2627739,177.5,177.37,128.58]
[1754662395448,19.2627739,177.5,177.47,9.84483759]
[1754662395749,3.28,177.55,177.5,8.6116]
[1754662395949,0.04328677,177.5,177.47,2.98]
[1754662396155,0.04328677,177.5,177.42,131.56]
[1754662396156,3.32328677,177.5,177.42,131.56]
[1754662396355,3.28,177.5,177.43,9.84483759]
[1754662396749,0.04256265,177.48,177.44,5.6333]
[1754662396947,3.28,177.47,177.42,2.98]
[1754662397158,3.28,177.47,177.38,507.5]
[1754662397657,3.28,177.47,177.38,379.02]
[1754662397859,3.28,177.47,177.39,5.635]
[1754662398053,3.28,177.42,177.39,5.635]
[1754662398354,3.28,177.41,177.35,5.6363]
[1754662398846,3.28,177.41,177.32,128.4]
[1754662399047,0.03982175,177.4,177.34,9.84483759]
[1754662399259,3.28,177.39,177.36,0.03587686]
[1754662399564,0.03982175,177.4,177.38,2.98]
[1754662399755,0.03982175,177.4,177.39,131.44]
[1754662400057,3.28,177.54,177.45,9.84483759]
[1754662400254,7.24633296,177.56,177.48,9.84483759]
[1754662400449,3.28,177.58,177.51,12.78483759]
[1754662400654,3.28,177.58,177.52,128.38]
[1754662400955,3.97775303,177.6,177.54,9.84483759]
[1754662401148,3.28,177.64,177.57,9.84483759]
[1754662401353,3.28,177.64,177.58,128.3]
[1754662401550,3.28,177.64,177.6,5.6283]
[1754662401749,3.28,177.69,177.58,128.3]
[1754662402051,0.04092338,177.63,177.59,128.22]
[1754662402253,3.32092338,177.63,177.62,0.03590599]
[1754662402656,3.32092338,177.63,177.56,2.94]
[1754662402858,3.32092338,177.63,177.56,128.24]
[1754662403450,3.32092338,177.63,177.53,12.78483759]
[1754662403651,3.32092338,177.63,177.59,5.6287]
[1754662403852,0.04092338,177.63,177.61,9.84483759]
[1754662404053,3.27603119,177.67,177.62,128.36]
[1754662404254,9.84483759,177.75,177.64,5.6269]
[1754662404255,3.28,177.7,177.64,5.6269]
[1754662404558,3.28,177.7,177.61,138.50483759]
[1754662404760,3.28,177.7,177.61,128.58]
[1754662405156,3.28,177.68,177.55,2.9]
[1754662405350,3.28,177.65,177.56,128.52]
[1754662405555,3.28,177.65,177.56,9.84483759]
[1754662405748,3.28,177.62,177.53,129.04]
[1754662405948,3.28,177.62,177.54,5.6301]
[1754662406160,3.28,177.6,177.52,388.76483759]
[1754662406459,3.28,177.58,177.54,5.6304]
[1754662406660,3.28,177.57,177.54,5.6304]
[1754662406855,3.28,177.57,177.52,381.81]
[1754662407050,0.03621282,177.58,177.52,381.81]
[1754662407259,0.03621282,177.58,177.54,9.84483759]
[1754662407454,0.03621282,177.58,177.57,12.73483759]
[1754662407662,7.27345857,177.63,177.58,2.85]
[1754662407961,7.27345857,177.66,177.61,2.85]
[1754662408165,10.55345857,177.65,177.61,2.85]
[1754662408359,7.27345857,177.64,177.63,12.69483759]
[1754662408566,3.90399072,177.64,177.63,141.73483759]
[1754662408860,3.29570554,177.67,177.64,2.85]
[1754662409059,3.29570554,177.67,177.63,9.84483759]
[1754662409060,3.29570554,177.66,177.63,9.84483759]
[1754662409272,3.28,177.67,177.63,9.84483759]
[1754662409273,3.29570554,177.65,177.64,134.6472]
[1754662409464,3.29570554,177.66,177.64,131.87]
[1754662409766,3.29570554,177.65,177.64,131.87]
[1754662409964,3.29570554,177.69,177.65,2.85]
[1754662410264,3.24198076,177.72,177.69,2.85]
[1754662410561,3.28,177.79,177.72,2.85]
[1754662410760,3.28,177.78,177.74,6.88920819]
[1754662410962,3.28,177.81,177.78,5.6227]
[1754662411167,4.58827398,177.89,177.77,9.84483759]
[1754662411361,3.28,177.84,177.77,12.69483759]
[1754662411661,3.28,177.84,177.78,0.0384675]
[1754662416169,3.28,177.84,177.79,16.54]
[1754662416362,2.97,177.82,177.79,16.54]
[1754662416562,0.03847417,177.83,177.8,3.02]
[1754662417168,3.00847417,177.83,177.8,3.02]
[1754662417470,2.97,177.8,177.79,16.54]
[1754662417666,2.97,177.8,177.79,7.048]